[Event "Titled Tuesday Blitz July 26 Early 2022"]
[White "Laxman, R.R."]
[Black "Hoang, Canh Huan"]
[WhiteFideId "5005361"]
[BlackFideId "12400599"]
[WhiteElo "2361"]
[BlackElo "2264"]
[Result "1-0"]
[Round "01"]
[TimeControl "180+1"]
[Date "2022.07.27"]
[WhiteClock "0:01:54"]
[BlackClock "0:00:59"]

1. d4 {[%clk 0:03:00]}  Nf6 {[%clk 0:02:58]} 2. Nf3 {[%clk 0:03:01]}  e6 {[%clk 0:02:59]} 3. c4 {[%clk 0:03:01]}  Be7 {[%clk 0:02:59]} 4. Nc3 {[%clk 0:02:59]}  d5 {[%clk 0:02:59]} 5. Bg5 {[%clk 0:02:58]}  O-O {[%clk 0:02:59]} 6. e3 {[%clk 0:02:59]}  c6 {[%clk 0:02:59]} 7. Bd3 {[%clk 0:02:59]}  Nbd7 {[%clk 0:03:00]} 8. O-O {[%clk 0:02:58]}  h6 {[%clk 0:03:00]} 9. Bh4 {[%clk 0:02:58]}  b6 {[%clk 0:03:00]} 10. Qe2 {[%clk 0:02:56]}  Bb7 {[%clk 0:03:00]} 11. Rfd1 {[%clk 0:02:55]}  Rc8 {[%clk 0:02:54]} 12. e4 {[%clk 0:02:53]}  dxe4 {[%clk 0:02:53]} 13. Nxe4 {[%clk 0:02:53]}  Nxe4 {[%clk 0:02:53]} 14. Qxe4 {[%clk 0:02:52]}  g6 {[%clk 0:02:49]} 15. Bxe7 {[%clk 0:02:49]}  Qxe7 {[%clk 0:02:49]} 16. Rac1 {[%clk 0:02:47]}  Nf6 {[%clk 0:02:49]} 17. Qh4 {[%clk 0:02:46]}  Kg7 {[%clk 0:02:48]} 18. Re1 {[%clk 0:02:47]}  Rfd8 {[%clk 0:02:44]} 19. Ne5 {[%clk 0:02:45]}  Ng8 {[%clk 0:02:37]} 20. Qf4 {[%clk 0:02:40]}  Qf6 {[%clk 0:02:35]} 21. Qe3 {[%clk 0:02:38]}  Ne7 {[%clk 0:02:29]} 22. Be4 {[%clk 0:02:32]}  Nf5 {[%clk 0:02:25]} 23. Bxf5 {[%clk 0:02:32]}  exf5 {[%clk 0:02:24]} 24. Rcd1 {[%clk 0:02:28]}  Re8 {[%clk 0:02:23]} 25. f4 {[%clk 0:02:25]}  g5 {[%clk 0:02:16]} 26. Qg3 {[%clk 0:02:22]}  Kh7 {[%clk 0:02:14]} 27. Rf1 {[%clk 0:02:20]}  Rcd8 {[%clk 0:02:06]} 28. h3 {[%clk 0:02:07]}  c5 {[%clk 0:01:56]} 29. fxg5 {[%clk 0:02:02]}  hxg5 {[%clk 0:01:52]} 30. Ng4 {[%clk 0:02:02]}  Qe6 {[%clk 0:01:40]} 31. d5 {[%clk 0:02:02]}  Qd6 {[%clk 0:01:34]} 32. Qxd6 {[%clk 0:01:59]}  Rxd6 {[%clk 0:01:34]} 33. Rxf5 {[%clk 0:02:00]}  Kg6 {[%clk 0:01:35]} 34. Rdf1 {[%clk 0:02:00]}  Re7 {[%clk 0:01:29]} 35. Ne5+ {[%clk 0:02:00]}  Kh5 {[%clk 0:01:25]} 36. Nxf7 {[%clk 0:01:57]}  Rg6 {[%clk 0:01:21]} 37. g4+ {[%clk 0:01:56]}  Kh4 {[%clk 0:01:21]} 38. R1f3 {[%clk 0:01:57]}  Ba6 {[%clk 0:01:18]} 39. b3 {[%clk 0:01:57]}  Bc8 {[%clk 0:01:14]} 40. Re5 {[%clk 0:01:54]}  Rxe5 {[%clk 0:01:06]} 41. Nxe5 {[%clk 0:01:55]}  Rg7 {[%clk 0:01:04]} 42. Kg2 {[%clk 0:01:55]}  a6 {[%clk 0:00:59]} 43. Rf8 {[%clk 0:01:54]} 1-0


[Site "https://www.chess.com"]

[Event "Titled Tuesday Blitz July 26 Early 2022"]
[White "Lehtosaari, Mauri"]
[Black "Oparin, Grigoriy"]
[WhiteFideId "501999"]
[BlackFideId "24125890"]
[WhiteElo "2513"]
[BlackElo "2639"]
[Result "0-1"]
[Round "01"]
[TimeControl "180+1"]
[Date "2022.07.26"]
[WhiteClock "0:00:42"]
[BlackClock "0:02:02"]

1. d4 {[%clk 0:03:00]}  Nf6 {[%clk 0:02:59]} 2. Nf3 {[%clk 0:02:57]}  g6 {[%clk 0:03:00]} 3. Bg5 {[%clk 0:02:57]}  Bg7 {[%clk 0:03:00]} 4. Nbd2 {[%clk 0:02:54]}  O-O {[%clk 0:03:00]} 5. c3 {[%clk 0:02:51]}  d6 {[%clk 0:02:57]} 6. e3 {[%clk 0:02:49]}  c5 {[%clk 0:02:56]} 7. Bc4 {[%clk 0:02:49]}  cxd4 {[%clk 0:02:54]} 8. cxd4 {[%clk 0:02:47]}  h6 {[%clk 0:02:53]} 9. Bxf6 {[%clk 0:02:46]}  Bxf6 {[%clk 0:02:54]} 10. O-O {[%clk 0:02:45]}  d5 {[%clk 0:02:53]} 11. Bd3 {[%clk 0:02:43]}  Nc6 {[%clk 0:02:53]} 12. a3 {[%clk 0:02:41]}  e6 {[%clk 0:02:53]} 13. Rc1 {[%clk 0:02:41]}  Bd7 {[%clk 0:02:53]} 14. b4 {[%clk 0:02:41]}  Qe7 {[%clk 0:02:50]} 15. Nb3 {[%clk 0:02:23]}  Rfc8 {[%clk 0:02:50]} 16. Qe2 {[%clk 0:02:08]}  Be8 {[%clk 0:02:50]} 17. h3 {[%clk 0:01:56]}  Rc7 {[%clk 0:02:50]} 18. Rc2 {[%clk 0:01:48]}  Rac8 {[%clk 0:02:50]} 19. Rfc1 {[%clk 0:01:48]}  Bg7 {[%clk 0:02:50]} 20. Qd2 {[%clk 0:01:42]}  Qd8 {[%clk 0:02:48]} 21. Rc3 {[%clk 0:01:41]}  Ne7 {[%clk 0:02:48]} 22. R1c2 {[%clk 0:01:36]}  Rxc3 {[%clk 0:02:46]} 23. Rxc3 {[%clk 0:01:37]}  Rxc3 {[%clk 0:02:46]} 24. Qxc3 {[%clk 0:01:38]}  Nc8 {[%clk 0:02:47]} 25. Ne5 {[%clk 0:01:31]}  Nd6 {[%clk 0:02:47]} 26. Na5 {[%clk 0:01:29]}  g5 {[%clk 0:02:39]} 27. Bb1 {[%clk 0:01:25]}  f6 {[%clk 0:02:39]} 28. Nf3 {[%clk 0:01:20]}  b6 {[%clk 0:02:36]} 29. Nb3 {[%clk 0:01:20]}  Qc8 {[%clk 0:02:37]} 30. Qd3 {[%clk 0:01:18]}  Bb5 {[%clk 0:02:19]} 31. Qh7+ {[%clk 0:01:14]}  Kf8 {[%clk 0:02:19]} 32. Qc2 {[%clk 0:01:14]}  Qxc2 {[%clk 0:02:14]} 33. Bxc2 {[%clk 0:01:15]}  Nc4 {[%clk 0:02:15]} 34. Bg6 {[%clk 0:01:01]}  Nxa3 {[%clk 0:02:13]} 35. e4 {[%clk 0:00:59]}  dxe4 {[%clk 0:02:10]} 36. Bxe4 {[%clk 0:01:00]}  Ke7 {[%clk 0:02:10]} 37. Nfd2 {[%clk 0:00:52]}  f5 {[%clk 0:02:06]} 38. Bb7 {[%clk 0:00:50]}  Kd7 {[%clk 0:02:02]} 39. g3 {[%clk 0:00:42]}  Bf8 {[%clk 0:02:02]} 0-1


[Site "https://www.chess.com"]

[Event "Titled Tuesday Blitz July 26 Early 2022"]
[White "Madaminov, Mukhiddin"]
[Black "Pourkashiyan, Atousa"]
[WhiteFideId "14210703"]
[BlackFideId "12502014"]
[WhiteElo "2011"]
[BlackElo "2247"]
[Result "0-1"]
[Round "01"]
[TimeControl "180+1"]
[Date "2022.07.27"]
[WhiteClock "0:00:19"]
[BlackClock "0:00:19"]

1. d4 {[%clk 0:02:57]}  Nf6 {[%clk 0:02:55]} 2. c4 {[%clk 0:02:56]}  e6 {[%clk 0:02:55]} 3. Nc3 {[%clk 0:02:57]}  Bb4 {[%clk 0:02:54]} 4. e3 {[%clk 0:02:57]}  O-O {[%clk 0:02:48]} 5. Bd3 {[%clk 0:02:57]}  d5 {[%clk 0:02:47]} 6. Nf3 {[%clk 0:02:54]}  dxc4 {[%clk 0:02:46]} 7. Bxc4 {[%clk 0:02:53]}  c5 {[%clk 0:02:43]} 8. O-O {[%clk 0:02:53]}  a6 {[%clk 0:02:38]} 9. a3 {[%clk 0:02:13]}  Ba5 {[%clk 0:02:18]} 10. dxc5 {[%clk 0:02:09]}  Bxc3 {[%clk 0:02:18]} 11. bxc3 {[%clk 0:01:48]}  Nbd7 {[%clk 0:02:15]} 12. a4 {[%clk 0:01:36]}  Nxc5 {[%clk 0:02:09]} 13. Ba3 {[%clk 0:01:19]}  Qc7 {[%clk 0:02:06]} 14. Qd4 {[%clk 0:01:17]}  Nfe4 {[%clk 0:01:26]} 15. Rfd1 {[%clk 0:00:34]}  b6 {[%clk 0:01:22]} 16. a5 {[%clk 0:00:32]}  bxa5 {[%clk 0:01:06]} 17. Qe5 {[%clk 0:00:27]}  Qxe5 {[%clk 0:00:55]} 18. Nxe5 {[%clk 0:00:28]}  Bb7 {[%clk 0:00:56]} 19. Nd7 {[%clk 0:00:23]}  Nxd7 {[%clk 0:00:54]} 20. Rxd7 {[%clk 0:00:23]}  Rfc8 {[%clk 0:00:49]} 21. Bf1 {[%clk 0:00:20]}  Bc6 {[%clk 0:00:44]} 22. Rd4 {[%clk 0:00:16]}  Nxc3 {[%clk 0:00:43]} 23. Bb2 {[%clk 0:00:09]}  Nb5 {[%clk 0:00:24]} 24. Rd2 {[%clk 0:00:08]}  Rd8 {[%clk 0:00:21]} 25. Rxd8+ {[%clk 0:00:08]}  Rxd8 {[%clk 0:00:22]} 26. Rxa5 {[%clk 0:00:08]}  Bb7 {[%clk 0:00:18]} 27. f3 {[%clk 0:00:06]}  Rd1 {[%clk 0:00:16]} 28. h4 {[%clk 0:00:05]}  h6 {[%clk 0:00:14]} 29. Ra1 {[%clk 0:00:05]}  Rxa1 {[%clk 0:00:14]} 30. Bxa1 {[%clk 0:00:06]}  Kf8 {[%clk 0:00:14]} 31. Kf2 {[%clk 0:00:06]}  f6 {[%clk 0:00:14]} 32. e4 {[%clk 0:00:07]}  Ke7 {[%clk 0:00:14]} 33. Ke3 {[%clk 0:00:07]}  Nd6 {[%clk 0:00:13]} 34. g4 {[%clk 0:00:08]}  a5 {[%clk 0:00:13]} 35. e5 {[%clk 0:00:08]}  fxe5 {[%clk 0:00:12]} 36. Bxe5 {[%clk 0:00:08]}  g6 {[%clk 0:00:12]} 37. Bd3 {[%clk 0:00:08]}  a4 {[%clk 0:00:12]} 38. Bxg6 {[%clk 0:00:08]}  Nc4+ {[%clk 0:00:12]} 39. Kd4 {[%clk 0:00:06]}  Nxe5 {[%clk 0:00:13]} 40. Kxe5 {[%clk 0:00:07]}  Bxf3 {[%clk 0:00:12]} 41. g5 {[%clk 0:00:05]}  hxg5 {[%clk 0:00:11]} 42. hxg5 {[%clk 0:00:06]}  a3 {[%clk 0:00:11]} 43. Bb1 {[%clk 0:00:06]}  Bd5 {[%clk 0:00:11]} 44. g6 {[%clk 0:00:06]}  a2 {[%clk 0:00:11]} 45. g7 {[%clk 0:00:07]}  Kf7 {[%clk 0:00:10]} 46. Bxa2 {[%clk 0:00:05]}  Bxa2 {[%clk 0:00:11]} 47. g8=Q+ {[%clk 0:00:05]}  Kxg8 {[%clk 0:00:11]} 48. Kf6 {[%clk 0:00:06]}  Kf8 {[%clk 0:00:11]} 49. Ke5 {[%clk 0:00:07]}  Ke7 {[%clk 0:00:12]} 50. Kf4 {[%clk 0:00:07]}  Kd6 {[%clk 0:00:12]} 51. Ke4 {[%clk 0:00:08]}  e5 {[%clk 0:00:13]} 52. Ke3 {[%clk 0:00:09]}  Ke6 {[%clk 0:00:14]} 53. Kd3 {[%clk 0:00:09]}  Kd5 {[%clk 0:00:15]} 54. Ke3 {[%clk 0:00:10]}  Bc4 {[%clk 0:00:14]} 55. Kd2 {[%clk 0:00:11]}  Bb5 {[%clk 0:00:15]} 56. Ke3 {[%clk 0:00:11]}  Bd7 {[%clk 0:00:16]} 57. Kf3 {[%clk 0:00:12]}  e4+ {[%clk 0:00:17]} 58. Ke3 {[%clk 0:00:12]}  Ke5 {[%clk 0:00:17]} 59. Ke2 {[%clk 0:00:13]}  Kd4 {[%clk 0:00:18]} 60. Kd2 {[%clk 0:00:14]}  e3+ {[%clk 0:00:18]} 61. Ke2 {[%clk 0:00:14]}  Ke4 {[%clk 0:00:19]} 62. Ke1 {[%clk 0:00:15]}  Kd3 {[%clk 0:00:19]} 63. Kf1 {[%clk 0:00:16]}  Kd2 {[%clk 0:00:19]} 64. Kg2 {[%clk 0:00:16]}  e2 {[%clk 0:00:19]} 65. Kg3 {[%clk 0:00:17]}  e1=Q+ {[%clk 0:00:19]} 66. Kh2 {[%clk 0:00:18]}  Qf2+ {[%clk 0:00:19]} 67. Kh1 {[%clk 0:00:19]}  Bc6# {[%clk 0:00:19]} 0-1


[Site "https://www.chess.com"]

[Event "Titled Tuesday Blitz July 26 Early 2022"]
[White "Melikyan, Gnel"]
[Black "Daianu, Cristian-Clement"]
[WhiteFideId "54109990"]
[BlackFideId "1208926"]
[WhiteElo "1772"]
[BlackElo "2127"]
[Result "1/2-1/2"]
[Round "01"]
[TimeControl "180+1"]
[Date "2022.07.27"]
[WhiteClock "0:00:02"]
[BlackClock "0:00:14"]

1. e4 {[%clk 0:02:54]}  c5 {[%clk 0:01:34]} 2. Nc3 {[%clk 0:02:50]}  d6 {[%clk 0:01:34]} 3. d4 {[%clk 0:02:50]}  cxd4 {[%clk 0:01:34]} 4. Qxd4 {[%clk 0:02:50]}  Nc6 {[%clk 0:01:34]} 5. Qd2 {[%clk 0:02:49]}  Nf6 {[%clk 0:01:33]} 6. b3 {[%clk 0:02:48]}  e6 {[%clk 0:01:34]} 7. Bb2 {[%clk 0:02:48]}  Be7 {[%clk 0:01:34]} 8. O-O-O {[%clk 0:02:47]}  O-O {[%clk 0:01:35]} 9. f4 {[%clk 0:02:39]}  a6 {[%clk 0:01:32]} 10. Nf3 {[%clk 0:02:34]}  Qc7 {[%clk 0:01:29]} 11. g4 {[%clk 0:01:56]}  b5 {[%clk 0:01:21]} 12. g5 {[%clk 0:01:53]}  Nd7 {[%clk 0:01:20]} 13. Bd3 {[%clk 0:01:40]}  Bb7 {[%clk 0:00:57]} 14. h4 {[%clk 0:01:20]}  Nc5 {[%clk 0:00:56]} 15. Kb1 {[%clk 0:01:16]}  Nb4 {[%clk 0:00:43]} 16. Nxb5 {[%clk 0:00:55]}  axb5 {[%clk 0:00:39]} 17. Qxb4 {[%clk 0:00:55]}  d5 {[%clk 0:00:38]} 18. Qc3 {[%clk 0:00:43]}  f6 {[%clk 0:00:31]} 19. gxf6 {[%clk 0:00:19]}  Bxf6 {[%clk 0:00:31]} 20. e5 {[%clk 0:00:19]}  Be7 {[%clk 0:00:31]} 21. f5 {[%clk 0:00:18]}  b4 {[%clk 0:00:29]} 22. Qd2 {[%clk 0:00:16]}  exf5 {[%clk 0:00:27]} 23. Nd4 {[%clk 0:00:16]}  Nxd3 {[%clk 0:00:19]} 24. cxd3 {[%clk 0:00:15]}  Qxe5 {[%clk 0:00:19]} 25. Rhe1 {[%clk 0:00:15]}  Qd6 {[%clk 0:00:18]} 26. Nb5 {[%clk 0:00:11]}  Qd7 {[%clk 0:00:19]} 27. Qe3 {[%clk 0:00:08]}  Bf6 {[%clk 0:00:18]} 28. Bxf6 {[%clk 0:00:07]}  Rxf6 {[%clk 0:00:19]} 29. Nd4 {[%clk 0:00:07]}  Rfa6 {[%clk 0:00:17]} 30. Rd2 {[%clk 0:00:08]}  f4 {[%clk 0:00:17]} 31. Qe5 {[%clk 0:00:07]}  Qf7 {[%clk 0:00:18]} 32. Rde2 {[%clk 0:00:07]}  f3 {[%clk 0:00:18]} 33. Rf2 {[%clk 0:00:07]}  Bc6 {[%clk 0:00:15]} 34. Rxf3 {[%clk 0:00:07]}  Re8 {[%clk 0:00:14]} 35. Rxf7 {[%clk 0:00:06]}  Rxe5 {[%clk 0:00:14]} 36. Rxg7+ {[%clk 0:00:05]}  Kxg7 {[%clk 0:00:14]} 37. Rxe5 {[%clk 0:00:06]}  Bd7 {[%clk 0:00:14]} 38. Rxd5 {[%clk 0:00:07]}  Bg4 {[%clk 0:00:14]} 39. Rg5+ {[%clk 0:00:07]}  Rg6 {[%clk 0:00:14]} 40. Rxg6+ {[%clk 0:00:05]}  Kxg6 {[%clk 0:00:15]} 41. Nc6 {[%clk 0:00:04]}  Be2 {[%clk 0:00:15]} 42. Nxb4 {[%clk 0:00:05]}  Kh5 {[%clk 0:00:15]} 43. Kc2 {[%clk 0:00:05]}  Kxh4 {[%clk 0:00:16]} 44. Kd2 {[%clk 0:00:06]}  Bf3 {[%clk 0:00:16]} 45. Ke3 {[%clk 0:00:07]}  Kg3 {[%clk 0:00:17]} 46. Nc2 {[%clk 0:00:06]}  h5 {[%clk 0:00:17]} 47. Nd4 {[%clk 0:00:07]}  Bd5 {[%clk 0:00:16]} 48. a4 {[%clk 0:00:04]}  h4 {[%clk 0:00:16]} 49. Nf5+ {[%clk 0:00:04]}  Kg4 {[%clk 0:00:15]} 50. Nxh4 {[%clk 0:00:05]}  Bxb3 {[%clk 0:00:14]} 51. Ng2 {[%clk 0:00:02]}  Bxa4 {[%clk 0:00:14]} 52. Nf4 {[%clk 0:00:02]}  Kf5 {[%clk 0:00:15]} 53. d4 {[%clk 0:00:02]}  Kf6 {[%clk 0:00:14]} 54. Nd3 {[%clk 0:00:02]}  Ke7 {[%clk 0:00:14]} 55. d5 {[%clk 0:00:03]}  Bb3 {[%clk 0:00:14]} 56. Kd4 {[%clk 0:00:02]}  Bxd5 {[%clk 0:00:14]} 1/2-1/2


[Site "https://www.chess.com"]

[Event "Titled Tuesday Blitz July 26 Early 2022"]
[White "Pakleza, Zbigniew"]
[Black "Nilsson, Joakim"]
[WhiteFideId "1119290"]
[BlackFideId "1723383"]
[WhiteElo "2467"]
[BlackElo "2214"]
[Result "1-0"]
[Round "01"]
[TimeControl "180+1"]
[Date "2022.07.26"]
[WhiteClock "0:00:53"]
[BlackClock "0:01:04"]

1. d4 {[%clk 0:03:00]}  Nf6 {[%clk 0:02:56]} 2. Nf3 {[%clk 0:03:00]}  c5 {[%clk 0:02:55]} 3. c3 {[%clk 0:03:01]}  d5 {[%clk 0:02:54]} 4. Bf4 {[%clk 0:03:00]}  Nc6 {[%clk 0:02:55]} 5. e3 {[%clk 0:02:59]}  e6 {[%clk 0:02:55]} 6. Nbd2 {[%clk 0:02:58]}  cxd4 {[%clk 0:02:55]} 7. cxd4 {[%clk 0:02:58]}  Nh5 {[%clk 0:02:53]} 8. Be5 {[%clk 0:02:59]}  f6 {[%clk 0:02:52]} 9. Bg3 {[%clk 0:02:59]}  Be7 {[%clk 0:02:41]} 10. Bd3 {[%clk 0:02:57]}  O-O {[%clk 0:02:39]} 11. Rc1 {[%clk 0:02:55]}  Bd7 {[%clk 0:02:38]} 12. a3 {[%clk 0:02:54]}  Rc8 {[%clk 0:02:37]} 13. Bh4 {[%clk 0:02:46]}  g6 {[%clk 0:02:34]} 14. O-O {[%clk 0:02:45]}  a6 {[%clk 0:02:25]} 15. b4 {[%clk 0:02:40]}  b5 {[%clk 0:02:20]} 16. Nb3 {[%clk 0:02:36]}  e5 {[%clk 0:02:12]} 17. dxe5 {[%clk 0:02:21]}  fxe5 {[%clk 0:02:11]} 18. Bxe7 {[%clk 0:02:22]}  Qxe7 {[%clk 0:02:11]} 19. Be2 {[%clk 0:02:10]}  Nf6 {[%clk 0:02:09]} 20. Nc5 {[%clk 0:02:07]}  e4 {[%clk 0:02:07]} 21. Nd4 {[%clk 0:02:00]}  Nxd4 {[%clk 0:02:07]} 22. Qxd4 {[%clk 0:01:59]}  Qd6 {[%clk 0:02:05]} 23. h3 {[%clk 0:01:49]}  Bf5 {[%clk 0:01:56]} 24. Rfd1 {[%clk 0:01:47]}  Rfd8 {[%clk 0:01:48]} 25. Nb7 {[%clk 0:01:44]}  Qe6 {[%clk 0:01:42]} 26. Nxd8 {[%clk 0:01:42]}  Rxd8 {[%clk 0:01:43]} 27. Bf1 {[%clk 0:01:37]}  Rf8 {[%clk 0:01:36]} 28. Rc7 {[%clk 0:01:29]}  Ne8 {[%clk 0:01:28]} 29. Ra7 {[%clk 0:01:20]}  Nf6 {[%clk 0:01:21]} 30. Rc1 {[%clk 0:01:18]}  g5 {[%clk 0:01:16]} 31. Rcc7 {[%clk 0:01:08]}  Kh8 {[%clk 0:01:15]} 32. Re7 {[%clk 0:00:58]}  Qd6 {[%clk 0:01:04]} 33. Qe5 {[%clk 0:00:53]} 1-0


[Site "https://www.chess.com"]

[Event "Titled Tuesday Blitz July 26 Early 2022"]
[White "Peiris, T G M"]
[Black "Sammed Jaykumar, Shete"]
[WhiteFideId "9901310"]
[BlackFideId "5073421"]
[WhiteElo "2022"]
[BlackElo "2239"]
[Result "1/2-1/2"]
[Round "01"]
[TimeControl "180+1"]
[Date "2022.07.27"]
[WhiteClock "0:00:16"]
[BlackClock "0:00:14"]

1. d4 {[%clk 0:02:57]}  Nf6 {[%clk 0:02:55]} 2. Nf3 {[%clk 0:02:58]}  e6 {[%clk 0:02:54]} 3. c4 {[%clk 0:02:48]}  d5 {[%clk 0:02:54]} 4. Nc3 {[%clk 0:02:46]}  c6 {[%clk 0:02:51]} 5. Bg5 {[%clk 0:02:42]}  Nbd7 {[%clk 0:02:50]} 6. e3 {[%clk 0:02:42]}  Qa5 {[%clk 0:02:46]} 7. Bxf6 {[%clk 0:02:23]}  Nxf6 {[%clk 0:02:44]} 8. Bd3 {[%clk 0:02:21]}  dxc4 {[%clk 0:02:13]} 9. Bxc4 {[%clk 0:02:21]}  b5 {[%clk 0:02:13]} 10. Bb3 {[%clk 0:02:05]}  Ne4 {[%clk 0:01:57]} 11. Rc1 {[%clk 0:02:04]}  Nxc3 {[%clk 0:01:52]} 12. bxc3 {[%clk 0:02:03]}  Ba3 {[%clk 0:01:52]} 13. Rc2 {[%clk 0:02:00]}  O-O {[%clk 0:01:53]} 14. O-O {[%clk 0:02:00]}  c5 {[%clk 0:01:52]} 15. c4 {[%clk 0:01:50]}  Rd8 {[%clk 0:01:49]} 16. Qe2 {[%clk 0:01:43]}  bxc4 {[%clk 0:01:32]} 17. Bxc4 {[%clk 0:01:39]}  Bb7 {[%clk 0:01:31]} 18. dxc5 {[%clk 0:01:29]}  Bxc5 {[%clk 0:01:25]} 19. Rb1 {[%clk 0:01:22]}  Be4 {[%clk 0:01:23]} 20. Rb5 {[%clk 0:01:21]}  Qa3 {[%clk 0:01:08]} 21. Rcb2 {[%clk 0:01:08]}  Rac8 {[%clk 0:00:40]} 22. R5b3 {[%clk 0:01:05]}  Qa5 {[%clk 0:00:39]} 23. Ba6 {[%clk 0:00:39]}  Rc6 {[%clk 0:00:20]} 24. Bb7 {[%clk 0:00:33]}  Bxf3 {[%clk 0:00:18]} 25. gxf3 {[%clk 0:00:27]}  Rcd6 {[%clk 0:00:19]} 26. Rb5 {[%clk 0:00:20]}  Qc3 {[%clk 0:00:19]} 27. Rc2 {[%clk 0:00:19]}  Rd1+ {[%clk 0:00:19]} 28. Kg2 {[%clk 0:00:18]}  Qf6 {[%clk 0:00:12]} 29. f4 {[%clk 0:00:16]}  Bf8 {[%clk 0:00:09]} 30. Qg4 {[%clk 0:00:11]}  h6 {[%clk 0:00:09]} 31. Bf3 {[%clk 0:00:11]}  Ra1 {[%clk 0:00:07]} 32. Rb7 {[%clk 0:00:11]}  Be7 {[%clk 0:00:03]} 33. Rcc7 {[%clk 0:00:11]}  Re8 {[%clk 0:00:03]} 34. Be4 {[%clk 0:00:11]}  Rxa2 {[%clk 0:00:03]} 35. Rxa7 {[%clk 0:00:11]}  Rxa7 {[%clk 0:00:02]} 36. Rxa7 {[%clk 0:00:12]}  Bf8 {[%clk 0:00:03]} 37. Rb7 {[%clk 0:00:12]}  Re7 {[%clk 0:00:03]} 38. Rxe7 {[%clk 0:00:11]}  Bxe7 {[%clk 0:00:02]} 39. f5 {[%clk 0:00:11]}  exf5 {[%clk 0:00:03]} 40. Qxf5 {[%clk 0:00:11]}  Qg5+ {[%clk 0:00:03]} 41. Qxg5 {[%clk 0:00:12]}  Bxg5 {[%clk 0:00:04]} 42. Bf5 {[%clk 0:00:12]}  Bf6 {[%clk 0:00:05]} 43. Be4 {[%clk 0:00:12]}  g6 {[%clk 0:00:06]} 44. Bf3 {[%clk 0:00:13]}  Kg7 {[%clk 0:00:07]} 45. Be2 {[%clk 0:00:12]}  h5 {[%clk 0:00:08]} 46. e4 {[%clk 0:00:12]}  Bh4 {[%clk 0:00:08]} 47. f3 {[%clk 0:00:13]}  Kf6 {[%clk 0:00:09]} 48. Bc4 {[%clk 0:00:13]}  Ke7 {[%clk 0:00:08]} 49. Bd5 {[%clk 0:00:13]}  Bg5 {[%clk 0:00:09]} 50. Bc4 {[%clk 0:00:14]}  Bf4 {[%clk 0:00:09]} 51. Bd5 {[%clk 0:00:14]}  Kf6 {[%clk 0:00:10]} 52. Bc4 {[%clk 0:00:14]}  Ke7 {[%clk 0:00:10]} 53. Bd5 {[%clk 0:00:15]}  f6 {[%clk 0:00:10]} 54. Bc6 {[%clk 0:00:13]}  h4 {[%clk 0:00:09]} 55. h3 {[%clk 0:00:13]}  Kd6 {[%clk 0:00:09]} 56. Be8 {[%clk 0:00:13]}  g5 {[%clk 0:00:09]} 57. Bh5 {[%clk 0:00:13]}  Kc5 {[%clk 0:00:09]} 58. Bg4 {[%clk 0:00:14]}  Kd4 {[%clk 0:00:10]} 59. Bf5 {[%clk 0:00:14]}  Ke3 {[%clk 0:00:11]} 60. Bg4 {[%clk 0:00:15]}  Kd4 {[%clk 0:00:12]} 61. Bf5 {[%clk 0:00:15]}  Ke3 {[%clk 0:00:13]} 62. Bg4 {[%clk 0:00:16]}  Kd4 {[%clk 0:00:14]} 1/2-1/2


[Site "https://www.chess.com"]